[Event "Chile-ch Women 2019"]
[Site "Santiago Las Condes"]
[Date "2019.02.14"]
[Round "4.6"]
[White "Jorquera Cabello, Valentina"]
[Black "Aguilera Merlet, Melisa Paz"]
[Result "1-0"]
[ECO "B51"]
[WhiteElo "2016"]
[BlackElo "1653"]
[Annotator "NA RC"]
[PlyCount "62"]
[EventDate "2019.02.12"]
[EventType "swiss"]
[EventCountry "CHI"]
[SourceTitle "playchess.com"]
[Source "ChessBase"]
[SourceQuality "1"]
[TimeControl "5400+30"]

1. e4 {[%emt 0:02:35]} c5 {[%emt 0:00:00]} 2. Nf3 {[%emt 0:00:04]} d6 {[%emt 0:00:06]} 3. Bb5+ {[%emt 0:00:04]} Nd7 {[%emt 0:01:47]} 4. d4 {[%emt 0:00:04]} cxd4 {[%emt 0:01:37]} 5. Qxd4 {[%emt 0:00:07]} Ngf6 {[%emt 0:01:27]} 6. Bg5 {[%emt 0:05:49]} a6 {[%emt 0:04:00]} 7. Bxd7+ {[%emt 0:00:08] LiveBook: 29 Games B51: Sicilian: Moscow Variation (3 Bb5+) without 3...Bd7} Nxd7 {[%emt 0:02:09]} 8. O-O {[%emt 0:01:18]} h6 $146 {[%emt 0:07:15]} ({Predecessor:} 8... f6 9. Be3 e6 10. Nbd2 Ne5 11. Nxe5 fxe5 12. Qc3 Bd7 13. f4 Rc8 {0-1 (22) Isserman,R (2273)-Hamdouchi,H (2588) Nice 2003}) 9. Bh4 {[%emt 0:09:48]} b5 {[%emt 0:05:13]} 10. Rd1 {[%emt 0:02:55]} Bb7 {[%emt 0:05:01]} 11. Nc3 {[%emt 0:03:59]} Qb6 {[%emt 0:03:27]} 12. Qd2 {[%emt 0:00:52]} e6 {[%emt 0:00:50]} 13. b4 {[%emt 0:03:10]} Rc8 {[%emt 0:04:53]} 14. Re1 $2 {[%emt 0:09:04]} (14. Rab1 $17) 14... Qc7 {[%emt 0:16:03]} 15. Re3 {[%emt 0:02:54]} Nb6 {[%emt 0:02:12]} 16. Qe1 {[%emt 0:07:08]} Nc4 {[%emt 0:03:01]} 17. Re2 {[%emt 0:02:26]} Na3 {[%emt 0:25:37]} 18. Nd5 $1 {[%emt 0:02:15]} Bxd5 {[%emt 0:00:30]} 19. exd5 {[%emt 0:00:07]} Nxc2 {[%emt 0:02:07]} 20. Rxc2 $2 {[%emt 0:01:26]} (20. Rxe6+ $1 $11 {and White is okay.} fxe6 21. Qxe6+ Be7 {[#]} 22. Bxe7 $1 {[%mdl 512]}) 20... Qxc2 {[%emt 0:01:17]} 21. dxe6 {[%emt 0:00:23]} f6 {[%emt 0:01:42]} 22. Bg3 {[%emt 0:06:58]} Be7 {[%emt 0:00:51]} 23. Nd4 {[%emt 0:06:55]} Qc7 {[%emt 0:05:26]} (23... Qg6 $17 24. a3 Rc4) 24. h4 {[%emt 0:02:39]} O-O {[%emt 0:00:46]} 25. Nf5 {[%emt 0:01:34]} Rfd8 {[%emt 0:01:40]} 26. Rd1 {[%emt 0:00:42]} Kf8 $18 {[%emt 0:03:02]} (26... Re8 $16) 27. Qe2 {[%emt 0:03:54]} Kg8 {[%emt 0:00:57]} 28. Qg4 {[%emt 0:00:29]} Bf8 {[%emt 0:00:28]} 29. Nxh6+ {[%emt 0:00:04]} Kh7 {[%emt 0:00:31]} 30. Nf7 {[%emt 0:00:42]} g6 {[%emt 0:00:33]} 31. h5 {[%emt 0:00:52]} Bh6 {[%emt 0:01:02]} 1-0

[Event "Chile-ch Women 2019"]
[Site "Santiago Las Condes"]
[Date "2019.02.14"]
[Round "4.7"]
[White "Arbunic Castro, Giovanna"]
[Black "Melipichun Torres, Katerine"]
[Result "1/2-1/2"]
[ECO "D53"]
[WhiteElo "1995"]
[BlackElo "1640"]
[Annotator "NA RC"]
[PlyCount "61"]
[EventDate "2019.02.12"]
[EventType "swiss"]
[EventCountry "CHI"]
[SourceTitle "playchess.com"]
[Source "ChessBase"]
[SourceQuality "1"]
[TimeControl "5400+30"]

1. Nf3 {[%emt 0:00:00]} e6 {[%emt 0:00:00]} 2. c4 {[%emt 0:00:00]} d5 {[%emt 0:00:00]} 3. d4 {[%emt 0:00:06]} Nf6 {[%emt 0:00:24]} 4. Bg5 {[%emt 0:00:17]} Nbd7 {[%emt 0:00:44]} 5. Nc3 {[%emt 0:00:38]} c6 {[%emt 0:00:59]} 6. e3 {[%emt 0:00:15]} Be7 {[%emt 0:03:18]} 7. Qc2 {[%emt 0:01:09]} Qc7 {[%emt 0:02:29] D53: Queen's Gambit Declined: 4 Bg5 Be7: Early deviations} (7... O-O 8. a3 h6 9. Bh4 a6 10. Rd1 b6 11. Bd3 Bb7 12. O-O Rc8 13. Qe2 dxc4 14. Bxc4 b5 15. Ba2 c5 16. Ne5 Qc7 17. Bg3 Bd6 18. Nxd7 Nxd7 {0-1 (42) Shankland,S (2674)-Mamedyarov,S (2766) chess.com INT 2017}) 8. O-O-O {[%emt 0:00:45]} dxc4 $146 {[%emt 0:06:06]} ({Predecessor:} 8... h6 9. Bh4 g5 10. Bg3 Bd6 11. e4 dxe4 12. Nxe4 Nxe4 13. Qxe4 Nf6 14. Qc2 Bxg3 15. hxg3 g4 16. Ne5 c5 17. Qd2 Nd7 18. Rxh6 Rxh6 19. Qxh6 cxd4 {1-0 (19) Takehara,A (1758)-Gomes,C (1562) Florianopolis 2019}) 9. e4 {[%emt 0:01:30]} (9. Bxc4 $14 {stays ahead.} h6 10. Bh4) 9... b5 {[%emt 0:11:18]} 10. e5 {[%emt 0:07:46]} Nd5 {[%emt 0:06:24]} 11. Ne4 {[%emt 0:03:48]} f6 {[%emt 0:17:59]} 12. exf6 {[%emt 0:01:42]} gxf6 {[%emt 0:00:09]} 13. Bd2 {[%emt 0:03:44]} Bb7 {[%emt 0:05:47]} 14. g3 {[%emt 0:01:35]} Nb4 {[%emt 0:03:54]} 15. Bxb4 {[%emt 0:01:07]} Bxb4 {[%emt 0:00:05]} 16. Bh3 {[%emt 0:03:04]} O-O-O {[%emt 0:08:30]} 17. Bxe6 {[%emt 0:00:51]} Kb8 {[%emt 0:01:00]} 18. a3 {[%emt 0:13:25]} Be7 {[%emt 0:03:36]} 19. Rhe1 {[%emt 0:00:57]} c5 {[%emt 0:08:05]} 20. dxc5 {[%emt 0:29:50]} Bxe4 {[%emt 0:05:15]} 21. Rxe4 {[%emt 0:11:31]} Nxc5 {[%emt 0:00:25]} 22. Re2 {[%emt 0:01:07]} Rxd1+ {[%emt 0:03:11]} 23. Qxd1 $19 {[%emt 0:00:07]} Rd8 {[%emt 0:00:33]} 24. Qc2 {[%emt 0:00:15]} Nd3+ {[%emt 0:02:33]} 25. Kb1 {[%emt 0:00:14]} Qc6 {[%emt 0:01:19]} 26. Bxc4 {[%emt 0:04:44]} bxc4 {[%emt 0:01:00]} 27. Rxe7 {[%emt 0:00:10]} Qxf3 {[%emt 0:00:24]} 28. Qxc4 {[%emt 0:00:08]} Qd1+ {[%emt 0:04:57]} 29. Ka2 {[%emt 0:00:16]} Nc1+ {[%emt 0:01:16]} 30. Ka1 {[%emt 0:00:57]} Nb3+ {[%emt 0:01:50]} 31. Ka2 {[%emt 0:00:07]} 1/2-1/2

[Event "Chile-ch Women 2019"]
[Site "Santiago Las Condes"]
[Date "2019.02.14"]
[Round "4.8"]
[White "Zuniga Lara, Catalina Paz"]
[Black "Ruiz Olate, Emily Andrea"]
[Result "1/2-1/2"]
[ECO "E73"]
[WhiteElo "1617"]
[BlackElo "1892"]
[Annotator "NA RC"]
[PlyCount "73"]
[EventDate "2019.02.12"]
[EventType "swiss"]
[EventCountry "CHI"]
[SourceTitle "playchess.com"]
[Source "ChessBase"]
[SourceQuality "1"]
[TimeControl "5400+30"]

1. d4 {[%emt 0:00:00]} Nf6 {[%emt 0:00:00]} 2. Nf3 {[%emt 0:00:19]} g6 {[%emt 0:00:00]} 3. c4 {[%emt 0:00:15]} Bg7 {[%emt 0:00:04]} 4. Nc3 {[%emt 0:00:05]} d6 {[%emt 0:00:05]} 5. Bg5 {[%emt 0:00:06]} a6 {[%emt 0:02:34]} 6. e4 {[%emt 0:04:16]} O-O {[%emt 0:03:58]} 7. Be2 {[%emt 0:00:18] LiveBook: 69 Games} Nbd7 {[%emt 0:01:18]} 8. O-O {[%emt 0:01:25]} c5 $14 {[%emt 0:09:02]} 9. Rc1 {[%emt 0:18:28]} Rb8 {[%emt 0:05:33]} 10. dxc5 {[%emt 0:02:04]} Nxc5 {[%emt 0:01:13]} 11. Qc2 {[%emt 0:00:03]} Bd7 {[%emt 0:01:54]} 12. b4 {[%emt 0:00:32]} Ne6 {[%emt 0:04:12]} 13. Bxf6 {[%emt 0:05:36]} Bxf6 {[%emt 0:00:20]} 14. Nd5 {[%emt 0:00:03]} Bg7 {[%emt 0:02:14]} 15. Rfd1 {[%emt 0:01:12]} Bh6 {[%emt 0:17:30]} 16. Rb1 {[%emt 0:00:48]} Nf4 {[%emt 0:00:03]} 17. Nxf4 {[%emt 0:00:35]} Bxf4 {[%emt 0:00:03]} 18. g3 {[%emt 0:00:11]} Bh6 {[%emt 0:02:16]} 19. e5 {[%emt 0:00:04]} Qc7 {[%emt 0:03:57]} 20. exd6 {[%emt 0:02:14]} exd6 {[%emt 0:00:02]} 21. h4 {[%emt 0:07:19]} Rfc8 {[%emt 0:09:07]} 22. Ng5 {[%emt 0:07:00]} b5 {[%emt 0:02:47]} 23. c5 {[%emt 0:03:52]} dxc5 {[%emt 0:00:46]} 24. Qxc5 {[%emt 0:00:09]} Qxc5 {[%emt 0:00:13]} 25. bxc5 {[%emt 0:00:05]} Bf5 {[%emt 0:00:05]} 26. Rbc1 {[%emt 0:00:26]} f6 {[%emt 0:00:38]} 27. g4 {[%emt 0:00:04]} fxg5 {[%emt 0:01:20]} 28. gxf5 {[%emt 0:00:05]} gxh4 {[%emt 0:00:28]} 29. Rc3 {[%emt 0:00:36]} Bf4 {[%emt 0:11:59]} 30. fxg6 {[%emt 0:03:05]} hxg6 {[%emt 0:00:06]} 31. c6 {[%emt 0:00:21]} Rd8 {[%emt 0:04:21]} 32. Rd7 {[%emt 0:00:12]} Rxd7 {[%emt 0:02:04]} 33. cxd7 {[%emt 0:00:06]} Rd8 {[%emt 0:00:20]} 34. Bg4 {[%emt 0:00:30]} Kf7 {[%emt 0:01:09]} 35. Rc6 {[%emt 0:00:43]} a5 {[%emt 0:03:23]} 36. Rc5 {[%emt 0:00:32]} b4 {[%emt 0:02:49]} 37. Rxa5 {[%emt 0:44:51]} 1/2-1/2

[Event "Chile-ch Women 2019"]
[Site "Santiago Las Condes"]
[Date "2019.02.14"]
[Round "5.1"]
[White "Reyes Jara, Paula"]
[Black "Gomez Barrera, Javiera Belen"]
[Result "1-0"]
[ECO "C54"]
[WhiteElo "1955"]
[BlackElo "1990"]
[Annotator "NA RC"]
[PlyCount "59"]
[EventDate "2019.02.12"]
[EventType "swiss"]
[EventCountry "CHI"]
[SourceTitle "playchess.com"]
[Source "ChessBase"]
[SourceQuality "1"]
[TimeControl "5400+30"]

1. e4 {[%emt 0:00:00]} e5 {[%emt 0:00:00]} 2. Nf3 {[%emt 0:00:14]} Nc6 {[%emt 0:00:07]} 3. Bc4 {[%emt 0:01:10]} Bc5 {[%emt 0:00:07]} 4. c3 {[%emt 0:00:33]} Nf6 {[%emt 0:00:05]} 5. d3 {[%emt 0:00:06] LiveBook: 6731 Games} d6 {[%emt 0:00:14]} 6. O-O {[%emt 0:01:23]} a6 {[%emt 0:02:02]} 7. h3 {[%emt 0:03:22] C54: Giuoco Piano: 4 c3 Nf6, main lines with 5 d4 and 5 d3} (7. a4 O-O 8. Bg5 h6 9. Bh4 g5 10. Bg3 Ba7 11. Nbd2 Nh7 12. h3 h5 13. d4 h4 14. Bh2 g4 15. hxg4 Bxg4 16. dxe5 dxe5 {1-0 (45) Duda,J (2738)-Kramnik,V (2777) Wijk aan Zee 2019}) 7... Ba7 {[%emt 0:02:35]} 8. Bb3 {[%emt 0:05:22]} O-O {[%emt 0:04:31]} 9. Bg5 {[%emt 0:02:55]} h6 {[%emt 0:01:17]} 10. Be3 {[%emt 0:08:47]} Re8 {[%emt 0:16:09]} 11. Nbd2 {[%emt 0:09:35]} d5 $146 {[%emt 0:09:10]} ({Predecessor:} 11... Be6 12. Ba4 b5 13. Bc2 d5 14. Bxa7 Rxa7 15. a4 Qb8 {½-½ (60) Royset,P (2243)-Stigar,P (2225) Norway 2014}) 12. Bxa7 {[%emt 0:05:59]} Rxa7 {[%emt 0:00:08]} 13. Qe2 {[%emt 0:03:01]} Be6 {[%emt 0:06:53]} 14. Rad1 {[%emt 0:06:52]} Ra8 {[%emt 0:06:51]} 15. Nh2 {[%emt 0:06:29]} Ne7 {[%emt 0:11:14]} 16. f4 {[%emt 0:14:45]} ({White should try} 16. d4 $11 exd4 17. e5) 16... exf4 {[%emt 0:00:51]} 17. e5 {[%emt 0:04:10]} Nd7 {[%emt 0:03:03]} 18. d4 {[%emt 0:00:05]} Ng6 {[%emt 0:00:23]} 19. Bc2 {[%emt 0:01:05]} Ndf8 {[%emt 0:01:16]} 20. Ndf3 {[%emt 0:05:28]} Qc8 {[%emt 0:17:18]} 21. Ne1 $17 {[%emt 0:02:27]} Bf5 {[%emt 0:03:22]} 22. Nd3 {[%emt 0:01:54]} Ne6 {[%emt 0:07:06]} 23. Qh5 {[%emt 0:02:06]} Be4 {[%emt 0:02:29]} 24. Ng4 {[%emt 0:01:01]} c5 {[%emt 0:01:49]} 25. Bb1 {[%emt 0:05:24]} cxd4 {[%emt 0:00:45]} 26. cxd4 {[%emt 0:01:40]} Nxd4 {[%emt 0:00:39]} 27. Nxf4 {[%emt 0:00:44]} Nxf4 {[%emt 0:00:31]} 28. Nxh6+ {[%emt 0:02:34]} Kh7 {[%emt 0:02:28]} 29. Rxf4 {[%emt 0:00:53]} Bg6 {[%emt 0:00:34]} 30. Nxf7+ {[%emt 0:01:02]} 1-0

[Event "Chile-ch Women 2019"]
[Site "Santiago Las Condes"]
[Date "2019.02.14"]
[Round "5.2"]
[White "Sanchez Tobar, Francisca Valenti"]
[Black "Manriquez Abarzua, Maria Belen"]
[Result "0-1"]
[ECO "D45"]
[WhiteElo "1817"]
[BlackElo "1650"]
[Annotator "NA RC"]
[PlyCount "98"]
[EventDate "2019.02.12"]
[EventType "swiss"]
[EventCountry "CHI"]
[SourceTitle "playchess.com"]
[Source "ChessBase"]
[SourceQuality "1"]
[TimeControl "5400+30"]

1. c4 {[%emt 0:01:37]} e6 {[%emt 0:00:00]} 2. Nc3 {[%emt 0:00:53]} d5 {[%emt 0:00:00]} 3. d4 {[%emt 0:01:51]} Nf6 {[%emt 0:00:37]} 4. Nf3 {[%emt 0:13:09]} c6 {[%emt 0:02:46]} 5. e3 {[%emt 0:03:10]} Nbd7 {[%emt 0:03:00]} 6. Bd3 {[%emt 0:02:53]} dxc4 {[%emt 0:01:15]} 7. Bxc4 {[%emt 0:00:22]} b5 {[%emt 0:00:28]} 8. Bd3 {[%emt 0:00:24]} Be7 {[%emt 0:02:05]} 9. Qc2 {[%emt 0:01:04]} Bb7 {[%emt 0:00:22]} 10. O-O {[%emt 0:02:35]} O-O {[%emt 0:03:27]} 11. b3 {[%emt 0:06:27]} (11. e4 $1 $14) 11... h6 {[%emt 0:02:00]} (11... Rc8 $15) 12. e4 {[%emt 0:06:41]} b4 $11 {[%emt 0:05:09]} 13. Na4 {[%emt 0:01:36]} Rc8 {[%emt 0:04:55]} 14. Nc5 {[%emt 0:05:06]} Nxc5 {[%emt 0:00:51]} 15. dxc5 {[%emt 0:00:06]} Nd7 {[%emt 0:01:17]} 16. Be3 {[%emt 0:00:28]} Qa5 {[%emt 0:06:03]} 17. Rac1 {[%emt 0:05:29]} Rfd8 {[%emt 0:00:25]} 18. e5 {[%emt 0:11:05]} Nxc5 {[%emt 0:04:00]} 19. Bh7+ {[%emt 0:23:38]} Kh8 {[%emt 0:00:08]} 20. g4 {[%emt 0:06:06]} Nd7 {[%emt 0:00:29]} 21. h4 {[%emt 0:04:51]} Nxe5 {[%emt 0:00:28]} 22. Nxe5 {[%emt 0:00:34]} Qxe5 {[%emt 0:00:06]} 23. Rce1 {[%emt 0:00:32]} Qc3 {[%emt 0:03:56]} 24. Qe4 {[%emt 0:00:41]} Ba6 {[%emt 0:02:59]} 25. Rc1 {[%emt 0:00:22]} Qd3 {[%emt 0:00:06]} 26. Rfd1 {[%emt 0:00:27]} Qxe4 {[%emt 0:00:43]} 27. Rxd8+ {[%emt 0:00:17]} Bxd8 {[%emt 0:01:28]} 28. Bxe4 {[%emt 0:00:07]} Bxh4 {[%emt 0:00:49]} 29. Rxc6 {[%emt 0:00:41]} Rxc6 {[%emt 0:00:36]} 30. Bxc6 {[%emt 0:00:05]} Be2 {[%emt 0:00:27]} 31. f3 {[%emt 0:00:21]} a6 {[%emt 0:00:20]} 32. Bc5 {[%emt 0:01:23]} Be1 {[%emt 0:00:10]} 33. Be4 {[%emt 0:00:20]} f5 {[%emt 0:01:34]} 34. gxf5 {[%emt 0:00:34]} exf5 {[%emt 0:00:01]} 35. Bxf5 {[%emt 0:00:06]} Bxf3 {[%emt 0:00:28]} 36. Kf1 {[%emt 0:00:40]} Bc3 {[%emt 0:00:06]} 37. Bc8 {[%emt 0:00:26]} g5 {[%emt 0:00:58]} 38. Bxa6 {[%emt 0:00:35]} h5 {[%emt 0:00:30]} 39. Kf2 {[%emt 0:00:30]} Ba8 {[%emt 0:00:54]} 40. Be2 {[%emt 0:00:44]} g4 {[%emt 0:00:36]} 41. Bd6 {[%emt 0:00:11]} Kg7 {[%emt 0:00:53]} 42. Bg3 {[%emt 0:01:07]} Kg6 {[%emt 0:00:09]} 43. Bd6 {[%emt 0:00:21]} Kg5 {[%emt 0:00:45]} 44. Bc5 {[%emt 0:00:33]} Bd2 {[%emt 0:03:17]} 45. Be7+ {[%emt 0:00:20]} Kf4 {[%emt 0:00:14]} 46. Bh4 {[%emt 0:00:32]} Be3+ {[%emt 0:00:08]} 47. Ke1 {[%emt 0:00:51]} Bf3 {[%emt 0:01:43]} 48. Bd8 {[%emt 0:00:23]} g3 {[%emt 0:01:32]} 49. Bc7+ {[%emt 0:00:22]} Kg4 {[%emt 0:00:09]} 0-1

[Event "Chile-ch Women 2019"]
[Site "Santiago Las Condes"]
[Date "2019.02.14"]
[Round "5.3"]
[White "Yanez Araya, Josefa"]
[Black "Abarca Gonzalez, Damaris"]
[Result "0-1"]
[ECO "D02"]
[WhiteElo "1688"]
[BlackElo "2039"]
[Annotator "NA RC"]
[PlyCount "78"]
[EventDate "2019.02.12"]
[EventType "swiss"]
[EventCountry "CHI"]
[SourceTitle "playchess.com"]
[Source "ChessBase"]
[SourceQuality "1"]
[TimeControl "5400+30"]

1. d4 {[%emt 0:00:00]} d5 {[%emt 0:00:00]} 2. Nf3 {[%emt 0:00:00]} Nf6 {[%emt 0:00:00]} 3. g3 {[%emt 0:00:15]} c6 {[%emt 0:00:59]} 4. Bg2 {[%emt 0:00:26]} e6 {[%emt 0:01:41]} 5. O-O {[%emt 0:00:54]} Bd6 {[%emt 0:00:26]} 6. b3 {[%emt 0:01:28]} Nbd7 {[%emt 0:02:02]} 7. Bb2 {[%emt 0:01:57]} O-O {[%emt 0:00:20] LiveBook: 10 Games D02: 1 d4 d5 2 Nf3 sidelines, including 2...Nf6 3 g3 and 2...Nf6 3 Bf4} 8. Nbd2 {[%emt 0:01:30]} (8. c4 dxc4 9. bxc4 Re8 10. e3 Qa5 11. Nbd2 e5 12. Nb3 Qb4 13. c5 Bc7 14. Qc2 exd4 15. Nfxd4 Ne5 16. Rfc1 {1-0 (36) Meijers,V (2472)-Eliseev,E (2401) Germany 2018}) 8... Qc7 {[%emt 0:02:45]} 9. Rc1 {[%emt 0:00:56]} e5 $146 {[%emt 0:04:01]} ({Predecessor:} 9... b6 10. c4 Bb7 11. Re1 Rac8 12. e4 dxe4 13. Nxe4 Nxe4 14. Rxe4 {½-½ (38) Nogueira,E-Souza,I (2046) Rio de Janeiro 2016}) 10. dxe5 {[%emt 0:06:29]} Nxe5 {[%emt 0:00:09]} 11. c4 {[%emt 0:02:47]} Qe7 {[%emt 0:08:44]} 12. cxd5 {[%emt 0:05:17]} Nxd5 {[%emt 0:01:52]} 13. Nc4 {[%emt 0:04:37]} ({White should try} 13. Nxe5 $16 Bxe5 14. Bxe5 Qxe5 15. Nc4) 13... Nxc4 {[%emt 0:03:40]} 14. Rxc4 {[%emt 0:00:54]} Nb6 {[%emt 0:06:34]} 15. Rh4 {[%emt 0:06:18]} Bf5 {[%emt 0:05:03]} 16. Qd4 {[%emt 0:04:57]} f6 {[%emt 0:00:47]} 17. e3 {[%emt 0:11:02]} Rfd8 {[%emt 0:06:41]} 18. Qc3 {[%emt 0:02:13]} a5 {[%emt 0:01:46]} 19. a4 {[%emt 0:05:05]} Bb4 {[%emt 0:04:39]} 20. Qc1 {[%emt 0:00:52]} c5 {[%emt 0:02:27]} 21. Rf4 {[%emt 0:03:50] [#]} Bd3 $1 {[%emt 0:01:15]} 22. Rxb4 {[%emt 0:21:54]} axb4 {[%emt 0:01:49]} 23. Re1 {[%emt 0:01:18]} Be4 {[%emt 0:08:16]} 24. Nd2 {[%emt 0:02:14]} Bxg2 {[%emt 0:01:54]} 25. Kxg2 {[%emt 0:00:10]} Qd6 {[%emt 0:01:24]} 26. Nc4 {[%emt 0:06:10]} Nxc4 {[%emt 0:00:31]} 27. Qxc4+ {[%emt 0:00:15]} Qd5+ {[%emt 0:00:11]} 28. Qxd5+ {[%emt 0:00:46]} Rxd5 {[%emt 0:00:03]} 29. e4 {[%emt 0:00:42]} Rd3 {[%emt 0:00:17]} 30. e5 $19 {[%emt 0:03:59]} Rxb3 {[%emt 0:00:46]} 31. Bc1 {[%emt 0:00:27]} Re8 {[%emt 0:00:30]} 32. Kf1 {[%emt 0:02:30]} Rxe5 {[%emt 0:00:40]} 33. Rxe5 {[%emt 0:00:55]} fxe5 {[%emt 0:00:05]} 34. Ke2 {[%emt 0:00:25]} Ra3 {[%emt 0:00:37]} 35. Kd2 {[%emt 0:01:18]} Rxa4 {[%emt 0:00:09]} 36. Kd3 {[%emt 0:00:21]} b5 {[%emt 0:00:19]} 37. Bb2 {[%emt 0:00:29]} c4+ {[%emt 0:00:15]} 38. Ke4 {[%emt 0:01:19]} c3 {[%emt 0:00:06]} 39. Bc1 {[%emt 0:00:15]} b3+ {[%emt 0:00:08]} 0-1

[Event "Chile-ch Women 2019"]
[Site "Santiago Las Condes"]
[Date "2019.02.14"]
[Round "5.4"]
[White "Abdala Cancino, Patricia Anastas"]
[Black "Jorquera Cabello, Valentina"]
[Result "0-1"]
[ECO "B50"]
[WhiteElo "1534"]
[BlackElo "2016"]
[Annotator "NA RC"]
[PlyCount "78"]
[EventDate "2019.02.12"]
[EventType "swiss"]
[EventCountry "CHI"]
[SourceTitle "playchess.com"]
[Source "ChessBase"]
[SourceQuality "1"]
[TimeControl "5400+30"]

1. e4 {[%emt 0:00:00]} c5 {[%emt 0:00:00]} 2. Nf3 {[%emt 0:01:41]} Nc6 {[%emt 0:00:00]} 3. b3 {[%emt 0:01:13]} d6 {[%emt 0:07:27]} 4. Bb2 {[%emt 0:01:37]} e5 {[%emt 0:00:31]} 5. d3 {[%emt 0:04:08] B50: Sicilian: 2...d6, Miscellaneous} g6 {[%emt 0:03:41]} 6. Nbd2 {[%emt 0:01:23]} (6. h4 Nh6 7. h5 g5 8. Nbd2 Bg7 9. Nc4 O-O 10. Qd2 f6 11. Ne3 Be6 12. c3 f5 13. exf5 Bxf5 14. Nxf5 Rxf5 {½-½ (30) Zajic,M (2488)-Erdos,V (2605) Skopje 2018}) 6... Bg7 {[%emt 0:00:10]} 7. a4 {[%emt 0:01:16]} Nge7 $146 {[%emt 0:00:34]} ({Predecessor:} 7... Nf6 8. Be2 O-O 9. O-O Nh5 10. g3 Bh6 11. Ne1 Ng7 12. c3 f5 {0-1 (34) Feranec,M (1835)-Rakay,K (2114) Tatranske Matliare 2008}) 8. g3 {[%emt 0:00:07]} O-O {[%emt 0:01:28]} 9. Bg2 {[%emt 0:05:02]} f5 {[%emt 0:04:30]} 10. O-O {[%emt 0:00:30]} ({Better is} 10. c3 $11) 10... f4 {[%emt 0:00:50]} 11. Nc4 {[%emt 0:04:20]} ({White should play} 11. c3 $1 $11) 11... h6 {[%emt 0:01:08]} 12. c3 {[%emt 0:02:59]} g5 {[%emt 0:05:28]} 13. gxf4 {[%emt 0:01:59]} Rxf4 {[%emt 0:02:22]} 14. Bc1 {[%emt 0:04:15]} Rf7 {[%emt 0:00:54]} 15. Be3 {[%emt 0:01:34] [#]} (15. Ne1 $17 {was necessary.}) 15... Bg4 $1 {[%emt 0:01:13]} 16. Ncd2 {[%emt 0:02:15]} Qd7 {[%emt 0:01:43]} 17. Qc1 {[%emt 0:00:51]} Ng6 {[%emt 0:01:40]} 18. Ne1 {[%emt 0:05:40]} Be2 {[%emt 0:07:11]} 19. f3 {[%emt 0:00:17]} Bxf1 {[%emt 0:00:04]} 20. Nxf1 {[%emt 0:00:09]} Nh4 {[%emt 0:00:06]} 21. Ng3 {[%emt 0:00:44]} Raf8 {[%emt 0:03:51]} 22. Qd1 {[%emt 0:01:44]} Ne7 {[%emt 0:05:41]} 23. Ra2 {[%emt 0:03:18]} Neg6 {[%emt 0:01:58]} 24. Rf2 {[%emt 0:00:32]} Nf4 {[%emt 0:03:48]} 25. Kh1 {[%emt 0:02:16]} b6 {[%emt 0:11:13]} 26. Rf1 {[%emt 0:09:31]} d5 {[%emt 0:05:46]} 27. exd5 {[%emt 0:01:59]} Nfxg2 {[%emt 0:05:30]} 28. Nxg2 {[%emt 0:00:13]} Nxf3 {[%emt 0:00:08]} 29. c4 {[%emt 0:00:46]} Qh3 {[%emt 0:00:23]} 30. Rxf3 {[%emt 0:01:50]} Rxf3 {[%emt 0:00:06]} 31. Qe1 {[%emt 0:00:49]} e4 {[%emt 0:02:08]} 32. dxe4 {[%emt 0:01:09]} Bd4 {[%emt 0:00:44]} 33. Bxd4 {[%emt 0:00:18]} cxd4 {[%emt 0:00:06]} 34. Kg1 {[%emt 0:00:28]} d3 {[%emt 0:04:44]} 35. Nf5 {[%emt 0:00:48]} R3xf5 {[%emt 0:02:07]} 36. exf5 {[%emt 0:01:10]} Qxf5 {[%emt 0:00:06]} 37. Ne3 $19 {[%emt 0:03:18]} Qe5 {[%emt 0:01:11]} 38. Qd2 {[%emt 0:00:19]} Rf3 {[%emt 0:01:40]} 39. Ng2 {[%emt 0:01:27]} Qd4+ {[%emt 0:00:29]} 0-1

[Event "Chile-ch Women 2019"]
[Site "Santiago Las Condes"]
[Date "2019.02.14"]
[Round "5.5"]
[White "Vargas Banda, Valentina"]
[Black "Luna Benalcazar, Gianella"]
[Result "0-1"]
[ECO "C02"]
[WhiteElo "1682"]
[BlackElo "1804"]
[Annotator "NA RC"]
[PlyCount "74"]
[EventDate "2019.02.12"]
[EventType "swiss"]
[EventCountry "CHI"]
[SourceTitle "playchess.com"]
[Source "ChessBase"]
[SourceQuality "1"]
[TimeControl "5400+30"]

1. e4 {[%emt 0:00:00]} e6 {[%emt 0:00:00]} 2. d4 {[%emt 0:00:00]} d5 {[%emt 0:00:00]} 3. e5 {[%emt 0:05:13]} c5 {[%emt 0:03:01]} 4. c3 {[%emt 0:06:29]} Nc6 {[%emt 0:02:03]} 5. Ne2 {[%emt 0:03:21]} f6 {[%emt 0:02:19]} 6. f4 {[%emt 0:09:10]} Nh6 {[%emt 0:10:34]} 7. Nd2 {[%emt 0:07:52]} cxd4 {[%emt 0:09:11]} 8. cxd4 {[%emt 0:01:43]} Nf5 {[%emt 0:02:01]} 9. Nb3 {[%emt 0:12:18]} a5 {[%emt 0:13:52]} 10. g4 {[%emt 0:09:37]} Bb4+ {[%emt 0:02:27]} 11. Nc3 {[%emt 0:01:38]} a4 {[%emt 0:11:36]} 12. gxf5 {[%emt 0:01:28]} axb3 {[%emt 0:00:15]} 13. Qh5+ {[%emt 0:15:14]} Kf8 {[%emt 0:01:33]} 14. Be3 {[%emt 0:03:59]} Bxc3+ {[%emt 0:04:36]} 15. bxc3 {[%emt 0:00:20]} bxa2 {[%emt 0:16:39]} 16. Bd3 {[%emt 0:02:33]} Ra3 {[%emt 0:06:49]} 17. Kd2 {[%emt 0:09:00]} exf5 {[%emt 0:06:24]} 18. exf6 {[%emt 0:03:34]} Qxf6 {[%emt 0:01:41]} 19. Rhe1 {[%emt 0:01:36]} g6 {[%emt 0:00:57]} 20. Qh6+ {[%emt 0:01:32]} Kf7 {[%emt 0:00:58]} 21. Bf2 {[%emt 0:00:37]} Qg7 {[%emt 0:01:05]} 22. Qxg7+ {[%emt 0:01:59]} Kxg7 {[%emt 0:00:05]} 23. Kc2 {[%emt 0:00:18]} Bd7 {[%emt 0:01:32]} 24. Re2 {[%emt 0:01:21]} Kf7 {[%emt 0:00:47]} 25. Be1 {[%emt 0:00:37]} Rc8 {[%emt 0:00:42]} 26. Kb2 {[%emt 0:00:24]} Rca8 {[%emt 0:00:28]} 27. h3 {[%emt 0:00:41]} Nxd4 {[%emt 0:00:31]} 28. Re5 {[%emt 0:00:39]} Nb3 {[%emt 0:00:56]} 29. Rxd5 {[%emt 0:00:38]} Be6 {[%emt 0:00:20]} 30. Rb5 {[%emt 0:00:16]} Nxa1 {[%emt 0:00:33]} 31. Rxb7+ {[%emt 0:00:24]} Kg8 {[%emt 0:00:27]} 32. Kxa1 {[%emt 0:00:43]} Rd8 {[%emt 0:00:39]} 33. Bc2 {[%emt 0:00:15]} Ra6 {[%emt 0:00:34]} 34. Rb2 {[%emt 0:00:54]} Rad6 {[%emt 0:00:13]} 35. Rxa2 {[%emt 0:00:27]} Bxa2 {[%emt 0:00:28]} 36. Kxa2 {[%emt 0:00:04]} Rb8 {[%emt 0:00:32]} 37. Bb3+ {[%emt 0:00:22]} Kg7 {[%emt 0:00:14]} 0-1